{"text_format":"1","workbook":"xlsx","n_sheets":7,"sheets":["Erläuterungen","Eingabe Acker","Eingabe Grünland","Wirtschaftsdünger","Mineraldünger","Weidetiere","Vordruck"],"not_rendered":{"charts":0,"images":0,"macros":0,"external_links":0,"defined_names":6,"comments":0,"pivot_tables":0},"unopened":[],"bounds":{"document_bytes":16777216,"sheet_cells":100000,"rows_first":2000,"rows_last":500,"rows_between":2000,"halvings":0,"cell_chars":16384,"cell_head_chars":4096},"cells_cut":0,"cells_raw":0,"read":"whole","date_system":"1900"}

{"sheet":"Erläuterungen","index":0,"n_rows":42,"n_cols":5,"rows_kept":42,"cut":false,"hidden":false,"merged":[]}
["Dokumentation der Düngung ab dem 01.05.2020 "]
[]
["Grundsätzliches:"]
[]
["Die Nutzung dieser Anwendung erfolgt ohne Gewähr."]
[]
["Die Düngung ist innerhalb von zwei Tagen schlagbezogen zu dokumentieren."]
["Es können aber Bewirtschaftungseinheiten gebildet werden wenn der Düngebedarf "]
["der entsprechenden Frucht bei mehreren Schlägen identisch ist."]
["Dies ist dann relevant, wenn mit dieser Anwendung schlagbezogen überprüft"]
["werden soll ob der Düngebedarf über die Düngung eingehalten wird."]
["Es können nur die gelb markierten Felder beschrieben/ausgefüllt werden."]
[]
["Idealerweise gibt man die Düngung für einen Schlag und eine Frucht ein und kopiert"]
["dieses Arbeitsblatt so häufig wie man diese Frucht angebaut hat."]
["Die Angaben zu den Schlägen können dann schnell angepasst werden"]
["(Schlagbezeichnung, Schlagnummer, Schlaggröße."]
[]
["Wichtig ist die Eingabe der Haupt- Zwischen- und Nebenfrüchte mit deren"]
["Düngebedarf aus der Düngebedarfsermittlung"]
[]
["Die Auswahl der Düngemittel (mineralisch, organisch) erfolgt mittels Dropdown Menü. Die"]
["Menge jeweils ergänzen, fertig. Eigene Untersuchungen können jeweils ergänzt werden"]
["Die Bezeichnung der eigenen Gülle/Gärreste darf nicht verändert werden!"]
[]
["Es müssen nur N und P haltige Düngemittel dokumentiert werden."]
[]
["Der Düngebedarf muss schlagbezogen für N und P einghalten werden."]
["Eine Überschreitung wird mit einer roten Zahl im Saldo dargestellt."]
[]
["Bei Grünlandschlägen mit Weidegang muss nur die Tierart, Anzahl"]
["und Weidetage angegeben werden. Es erfolgt mit diesen Daten"]
["aber keine Berechnung da dies bereits bei der Düngebedarfsermittlung "]
["berücksichtigt wurde (z.B. Grünland mit 20% Weide)"]
[]
["Bei Fragen wenden Sie sich bitte an den Beratungsring Osnabrück!"]
["Sollten Sie Fehler in der Anwendung feststellen, bitten wir um Mitteilung"]
[]
["Viel Erfolg bei der Dokumentation!",null,null,null,"😊😊😊😊"]
[]
["Tel: 0541-56008-113"]
["br-os@gmx.de"]

{"sheet":"Eingabe Acker","index":1,"n_rows":52,"n_cols":9,"rows_kept":52,"cut":false,"hidden":false,"merged":[[0,1,0,3],[4,5,4,6],[5,2,5,4],[5,5,5,6],[6,2,6,4],[6,5,6,6],[2,4,2,5],[4,2,4,4],[47,0,48,5],[47,6,47,8],[7,2,7,4],[7,5,7,6],[8,3,8,4],[8,5,8,6],[33,3,33,4],[34,3,34,4]]}
["Betrieb:",null,null,null,"Düngung",null,null,"Jahr",2020]
[]
["Schlag:",null,"Schlag-Nr.:",null,null,null,"Schlaggröße:    "]
[]
["Düngebedarf",null,"Ackerland",null,null,"N-Düngebedarf Erntejahr",null,"P2O5-Dünge-bedarf","P2O5-Abfuhr"]
["Hauptfrucht"]
["Zwischenfrucht"]
["Nebenfrucht/Zweitfrucht"]
[null,null,null,"Summe",null,{"$f":"+IF(C6=0,\" \",SUM(F6:F8))","v":" "},null,{"$f":"+IF(C6=0,\" \",SUM(H6:H8))","v":" "},{"$f":"+IF(C6=0,\" \",SUM(I6:I8))","v":" "}]
[null,null,null,null,null,"Kosten gesamt"]
["2.) Ausbringung von Wirtschaftsdüngern"]
["Datum","Art","m³/ha","N","N-Aus-Nutzung","P2O5","N-Gesamt","N-Aus-Nutzung","P-Gesamt"]
[null,null,"t/ha","kg/ha","kg je ha","kg/ha","kg je ha","kg je ha","kg je ha"]
[null,null,null,{"$f":"+IF(B14=0,\" \",VLOOKUP(B14,Wirtschaftsdünger!B2:E56,2))","v":" "},{"$f":"+IF(B14=0,\" \",VLOOKUP(B14,Wirtschaftsdünger!B2:H56,7))","v":" "},{"$f":"+IF(B14=0,\" \",VLOOKUP(B14,Wirtschaftsdünger!B2:E56,4))","v":" "},{"$f":"+IF(B14=0,\" \",D14*C14)","v":" "},{"$f":"+IF(B14=0,\" \",E14*C14)","v":" "},{"$f":"+IF(B14=0,\" \",C14*F14)","v":" "}]
[null,null,null,{"$f":"+IF(B15=0,\" \",VLOOKUP(B15,Wirtschaftsdünger!B2:E56,2))","v":" "},{"$f":"+IF(B15=0,\" \",VLOOKUP(B15,Wirtschaftsdünger!B2:H56,7))","v":" "},{"$f":"+IF(B15=0,\" \",VLOOKUP(B15,Wirtschaftsdünger!B2:E56,4))","v":" "}," "," "," "]
[null,null,null,{"$f":"+IF(B16=0,\" \",VLOOKUP(B16,Wirtschaftsdünger!B2:E56,2))","v":" "},{"$f":"+IF(B16=0,\" \",VLOOKUP(B16,Wirtschaftsdünger!B2:H56,7))","v":" "},{"$f":"+IF(B16=0,\" \",VLOOKUP(B16,Wirtschaftsdünger!B2:E56,4))","v":" "}," "," "," "]
[null,null,null,{"$f":"+IF(B17=0,\" \",VLOOKUP(B17,Wirtschaftsdünger!B2:E56,2))","v":" "},{"$f":"+IF(B17=0,\" \",VLOOKUP(B17,Wirtschaftsdünger!B2:H56,7))","v":" "},{"$f":"+IF(B17=0,\" \",VLOOKUP(B17,Wirtschaftsdünger!B2:E56,4))","v":" "}," "," "," "]
[null,null,null,{"$f":"+IF(B18=0,\" \",VLOOKUP(B18,Wirtschaftsdünger!B2:E57,2))","v":" "},{"$f":"+IF(B18=0,\" \",VLOOKUP(B18,Wirtschaftsdünger!B2:H57,7))","v":" "},{"$f":"+IF(B18=0,\" \",VLOOKUP(B18,Wirtschaftsdünger!B2:E57,4))","v":" "}," "," "," "]
[null,null,null,{"$f":"+IF(B19=0,\" \",VLOOKUP(B19,Wirtschaftsdünger!B2:E58,2))","v":" "},{"$f":"+IF(B19=0,\" \",VLOOKUP(B19,Wirtschaftsdünger!B2:H53,7))","v":" "},{"$f":"+IF(B19=0,\" \",VLOOKUP(B19,Wirtschaftsdünger!B2:E58,4))","v":" "}," "," "," "]
[null,null,null,null,null,"Summe",{"$f":"+IF(B14=0,\" \",SUM(G14:G19))","v":" "},{"$f":"+IF(B14=0,\" \",SUM(H14:H19))","v":" "},{"$f":"+IF(B14=0,\" \",SUM(I14:I19))","v":" "}]
[null,null,null,null,null,"Kosten gesamt"]
["3.) Ausbringung von Mineraldüngern"]
["Datum","Mineraldünger","Menge","N",{"$f":"+E12","v":"N-Aus-Nutzung"},"P2O5","N-Gesamt",{"$f":"+H12","v":"N-Aus-Nutzung"},"P-Gesamt"]
[null,null,"dt/ha","kg/ha","kg je ha","kg/ha","kg je ha",{"$f":"+H13","v":"kg je ha"},"kg je ha"]
[null,null,null,{"$f":"+IF(B25=0,\" \",VLOOKUP(B25,Mineraldünger!B2:D106,2))","v":" "},{"$f":"+IF(B25=0,\" \",VLOOKUP(B25,Mineraldünger!B2:D106,3))","v":" "},{"$f":"+IF(B25=0,\" \",VLOOKUP(B25,Mineraldünger!B2:D106,3))","v":" "},{"$f":"+IF(B25=0,\" \",D25*C25)","v":" "},{"$f":"+G25","v":" "},{"$f":"+IF(B25=0,\" \",C25*F25)","v":" "}]
[null,null,null,{"$f":"+IF(B26=0,\" \",VLOOKUP(B26,Mineraldünger!B2:D107,2))","v":" "},{"$f":"+IF(B26=0,\" \",VLOOKUP(B26,Mineraldünger!B2:D107,3))","v":" "},{"$f":"+IF(B26=0,\" \",VLOOKUP(B26,Mineraldünger!B2:D107,3))","v":" "}," "," "," "]
[null,null,null,{"$f":"+IF(B27=0,\" \",VLOOKUP(B27,Mineraldünger!B2:D108,2))","v":" "},{"$f":"+IF(B27=0,\" \",VLOOKUP(B27,Mineraldünger!B2:D108,3))","v":" "},{"$f":"+IF(B27=0,\" \",VLOOKUP(B27,Mineraldünger!B2:D108,3))","v":" "}," "," "," "]
[null,null,null,{"$f":"+IF(B28=0,\" \",VLOOKUP(B28,Mineraldünger!B2:D109,2))","v":" "},{"$f":"+IF(B28=0,\" \",VLOOKUP(B28,Mineraldünger!B2:D109,3))","v":" "},{"$f":"+IF(B28=0,\" \",VLOOKUP(B28,Mineraldünger!B2:D109,3))","v":" "}," "," "," "]
[null,null,null,{"$f":"+IF(B29=0,\" \",VLOOKUP(B29,Mineraldünger!B2:D110,2))","v":" "},{"$f":"+IF(B29=0,\" \",VLOOKUP(B29,Mineraldünger!B2:D110,3))","v":" "},{"$f":"+IF(B29=0,\" \",VLOOKUP(B29,Mineraldünger!B2:D110,3))","v":" "}," "," "," "]
[null,null,null,{"$f":"+IF(B30=0,\" \",VLOOKUP(B30,Mineraldünger!B2:D111,2))","v":" "},{"$f":"+IF(B30=0,\" \",VLOOKUP(B30,Mineraldünger!B2:D111,3))","v":" "},{"$f":"+IF(B30=0,\" \",VLOOKUP(B30,Mineraldünger!B2:D111,3))","v":" "}," "," "," "]
[null,null,null,null,null,"Summe",{"$f":"+IF(B25=0,\" \",SUM(G25:G30))","v":" "},{"$f":"+IF(B25=0,\" \",SUM(H25:H30))","v":" "},{"$f":"+IF(B25=0,\" \",SUM(I25:I30))","v":" "}]
[null,null,null,null,null,"Kosten gesamt"]
["4.) Ausbringung von Pflanzenschutzmittel (seit Ernte Vorfrucht)"]
["Datum","Pflanzenschutz-","Menge","Pflanzenschutz-",null,"Menge","Anwender"]
[null,"mittel 1","kg/l je ha","mittel 2",null,"kg/l je ha"]
[]
[]
[]
[]
[null,null,null,null,null,"Kosten gesamt"]
["5.) Ernte"]
["Datum",null,"Ertrag",null,"dt/ha","Lagerung::   ja  [    ] nein [    ]"]
[]
["6.) Kommentare"]
[]
[]
[]
["Düngebedarf und Düngung der Kulturen (HF, ZF, NF)",null,null,null,null,null,"Summe kg"]
[null,null,null,null,null,null,"N-Aus-nutzung","P2O5-Bedarf","P2O5-Abfuhr"]
[null,null,null,"Gesamtdüngebedarf",null,null,{"$f":"+IF(C6=0,\" \",F9)","v":" "},{"$f":"+IF(C6=0,\" \",H9)","v":" "},{"$f":"+IF(C6=0,\" \",I9)","v":" "}]
[null,null,null,"Gesamtdüngung",null,null,{"$f":"+SUM(H14:H19,G25:G30)","v":0},{"$f":"+SUM(H14:H19,H25:H30)","v":0},{"$f":"+SUM(I14:I19,I25:I30)","v":0}]
[null,null,null,"Saldo",null,null,{"$f":"+SUM(F6:F8)-SUM(H14:H19,H25:H30)","v":0},{"$f":"+SUM(H6:H8)-SUM(H14:H19,H25:H30)","v":0},{"$f":"+SUM(I6:I8)-SUM(I14:I19,I25:I30)","v":0}]

{"sheet":"Eingabe Grünland","index":2,"n_rows":57,"n_cols":9,"rows_kept":57,"cut":false,"hidden":false,"merged":[[34,3,34,4],[0,1,0,3],[2,4,2,5],[4,5,4,6],[5,2,5,4],[5,5,5,6],[6,2,6,4],[6,5,6,6],[4,2,4,4],[7,2,7,4],[7,5,7,6],[8,3,8,4],[8,5,8,6],[33,3,33,4],[46,0,46,1],[46,2,46,3],[46,4,46,5],[46,6,46,8],[47,2,47,3],[47,4,47,5],[47,6,47,8],[50,2,50,3],[50,4,50,5],[50,6,50,8],[52,0,53,5],[52,6,52,8],[48,4,48,5],[48,6,48,8],[49,2,49,3],[49,4,49,5],[49,6,49,8],[48,2,48,3]]}
["Betrieb:",null,null,null,"Düngung",null,null,"Jahr",2020]
[]
["Schlag:",null,"Schlag-Nr.:",null,null,null,"Schlaggröße:    "]
[]
["Düngebedarf",null,"Grünland",null,null,"N-Düngebedarf Erntejahr",null,"P2O5-Dünge-bedarf","P2O5-Abfuhr"]
["Hauptfrucht"]
["Zwischenfrucht"]
["Nebenfrucht/Zweitfrucht"]
[null,null,null,"Summe",null,{"$f":"+IF(C6=0,\" \",SUM(F6:F8))","v":" "},null,{"$f":"+IF(C6=0,\" \",SUM(H6:H8))","v":" "},{"$f":"+IF(C6=0,\" \",SUM(I6:I8))","v":" "}]
[null,null,null,null,null,"Kosten gesamt"]
["2.) Ausbringung von Wirtschaftsdüngern"]
["Datum","Art","m³/ha","N","N-Aus-Nutzung","P2O5","N-Gesamt","N-Aus-Nutzung","P-Gesamt"]
[null,null,"t/ha","kg/ha","kg je ha","kg je ha","kg je ha","kg je ha","kg je ha"]
[null,null,null,{"$f":"+IF(B14=0,\" \",VLOOKUP(B14,Wirtschaftsdünger!B2:E56,2))","v":" "},{"$f":"+IF(B14=0,\" \",VLOOKUP(B14,Wirtschaftsdünger!B2:I56,8))","v":" "},{"$f":"+IF(B14=0,\" \",VLOOKUP(B14,Wirtschaftsdünger!B2:E56,4))","v":" "},{"$f":"+IF(B14=0,\" \",D14*C14)","v":" "},{"$f":"+IF(B14=0,\" \",E14*C14)","v":" "},{"$f":"+IF(B14=0,\" \",C14*F14)","v":" "}]
[null,null,null,{"$f":"+IF(B15=0,\" \",VLOOKUP(B15,Wirtschaftsdünger!B2:E56,2))","v":" "},{"$f":"+IF(B15=0,\" \",VLOOKUP(B15,Wirtschaftsdünger!B2:I56,8))","v":" "},{"$f":"+IF(B15=0,\" \",VLOOKUP(B15,Wirtschaftsdünger!B2:E56,4))","v":" "}," "," "," "]
[null,null,null,{"$f":"+IF(B16=0,\" \",VLOOKUP(B16,Wirtschaftsdünger!B2:E56,2))","v":" "},{"$f":"+IF(B16=0,\" \",VLOOKUP(B16,Wirtschaftsdünger!B2:I56,8))","v":" "},{"$f":"+IF(B16=0,\" \",VLOOKUP(B16,Wirtschaftsdünger!B2:E56,4))","v":" "}," "," "," "]
[null,null,null,{"$f":"+IF(B17=0,\" \",VLOOKUP(B17,Wirtschaftsdünger!B2:E56,2))","v":" "},{"$f":"+IF(B17=0,\" \",VLOOKUP(B17,Wirtschaftsdünger!B2:I56,8))","v":" "},{"$f":"+IF(B17=0,\" \",VLOOKUP(B17,Wirtschaftsdünger!B2:E56,4))","v":" "}," "," "," "]
[null,null,null,{"$f":"+IF(B18=0,\" \",VLOOKUP(B18,Wirtschaftsdünger!B2:E57,2))","v":" "},{"$f":"+IF(B18=0,\" \",VLOOKUP(B18,Wirtschaftsdünger!B2:I56,8))","v":" "},{"$f":"+IF(B18=0,\" \",VLOOKUP(B18,Wirtschaftsdünger!B2:E57,4))","v":" "}," "," "," "]
[null,null,null,{"$f":"+IF(B19=0,\" \",VLOOKUP(B19,Wirtschaftsdünger!B2:E58,2))","v":" "},{"$f":"+IF(B19=0,\" \",VLOOKUP(B19,Wirtschaftsdünger!B2:I56,8))","v":" "},{"$f":"+IF(B19=0,\" \",VLOOKUP(B19,Wirtschaftsdünger!B2:E58,4))","v":" "}," "," "," "]
[null,null,null,null,null,"Summe",{"$f":"+IF(B14=0,\" \",SUM(G14:G19))","v":" "},{"$f":"+IF(B14=0,\" \",SUM(H14:H19))","v":" "},{"$f":"+IF(B14=0,\" \",SUM(I14:I19))","v":" "}]
[null,null,null,null,null,"Kosten gesamt"]
["3.) Ausbringung von Mineraldüngern"]
["Datum","Mineraldünger","Menge","N",{"$f":"+E12","v":"N-Aus-Nutzung"},"P2O5","N-Gesamt",{"$f":"+H12","v":"N-Aus-Nutzung"},"P-Gesamt"]
[null,null,"dt/ha","kg/ha","kg je ha","kg je ha","kg je ha",{"$f":"+H13","v":"kg je ha"},"kg je ha"]
[null,null,null,{"$f":"+IF(B25=0,\" \",VLOOKUP(B25,Mineraldünger!B2:D106,2))","v":" "},{"$f":"+IF(B25=0,\" \",VLOOKUP(B25,Mineraldünger!B2:D106,3))","v":" "},{"$f":"+IF(B25=0,\" \",VLOOKUP(B25,Mineraldünger!B2:D106,3))","v":" "},{"$f":"+IF(B25=0,\" \",D25*C25)","v":" "},{"$f":"+G25","v":" "},{"$f":"+IF(B25=0,\" \",C25*F25)","v":" "}]
[null,null,null,{"$f":"+IF(B26=0,\" \",VLOOKUP(B26,Mineraldünger!B2:D107,2))","v":" "},{"$f":"+IF(B26=0,\" \",VLOOKUP(B26,Mineraldünger!B2:D107,3))","v":" "},{"$f":"+IF(B26=0,\" \",VLOOKUP(B26,Mineraldünger!B2:D107,3))","v":" "}," "," "," "]
[null,null,null,{"$f":"+IF(B27=0,\" \",VLOOKUP(B27,Mineraldünger!B2:D108,2))","v":" "},{"$f":"+IF(B27=0,\" \",VLOOKUP(B27,Mineraldünger!B2:D108,3))","v":" "},{"$f":"+IF(B27=0,\" \",VLOOKUP(B27,Mineraldünger!B2:D108,3))","v":" "}," "," "," "]
[null,null,null,{"$f":"+IF(B28=0,\" \",VLOOKUP(B28,Mineraldünger!B2:D109,2))","v":" "},{"$f":"+IF(B28=0,\" \",VLOOKUP(B28,Mineraldünger!B2:D109,3))","v":" "},{"$f":"+IF(B28=0,\" \",VLOOKUP(B28,Mineraldünger!B2:D109,3))","v":" "}," "," "," "]
[null,null,null,{"$f":"+IF(B29=0,\" \",VLOOKUP(B29,Mineraldünger!B2:D110,2))","v":" "},{"$f":"+IF(B29=0,\" \",VLOOKUP(B29,Mineraldünger!B2:D110,3))","v":" "},{"$f":"+IF(B29=0,\" \",VLOOKUP(B29,Mineraldünger!B2:D110,3))","v":" "}," "," "," "]
[null,null,null,{"$f":"+IF(B30=0,\" \",VLOOKUP(B30,Mineraldünger!B2:D111,2))","v":" "},{"$f":"+IF(B30=0,\" \",VLOOKUP(B30,Mineraldünger!B2:D111,3))","v":" "},{"$f":"+IF(B30=0,\" \",VLOOKUP(B30,Mineraldünger!B2:D111,3))","v":" "}," "," "," "]
[null,null,null,null,null,"Summe",{"$f":"+IF(B25=0,\" \",SUM(G25:G30))","v":" "},{"$f":"+IF(B25=0,\" \",SUM(H25:H30))","v":" "},{"$f":"+IF(B25=0,\" \",SUM(I25:I30))","v":" "}]
[null,null,null,null,null,"Kosten gesamt"]
["4.) Ausbringung von Pflanzenschutzmittel (seit Ernte Vorfrucht)"]
["Datum","Pflanzenschutz-","Menge","Pflanzenschutz-",null,"Menge","Anwender"]
[null,"mittel 1","kg/l je ha","mittel 2",null,"kg/l je ha"]
[]
[]
[]
[]
[null,null,null,null,null,"Kosten gesamt"]
["5.) Ernte"]
["Datum",null,"Ertrag",null,"dt/ha","Lagerung::   ja  [    ] nein [    ]"]
[]
["6.) Kommentare"]
[]
[]
["Weidetiere",null,"Weidetage",null,"Anzahl Tiere",null,"Bemerkungen"]
[]
[]
[]
[]
[]
["Düngebedarf und Düngung der Kulturen (HF, ZF, NF)",null,null,null,null,null,"Summe kg"]
[null,null,null,null,null,null,"N-Aus-nutzung","P2O5-Bedarf","P2O5-Abfuhr"]
[null,null,null,"Gesamtdüngebedarf",null,null,{"$f":"+IF(C6=0,\" \",F9)","v":" "},{"$f":"+IF(C6=0,\" \",H9)","v":" "},{"$f":"+IF(C6=0,\" \",I9)","v":" "}]
[null,null,null,"Gesamtdüngung",null,null,{"$f":"+SUM(H14:H19,G25:G30)","v":0},{"$f":"+SUM(H14:H19,H25:H30)","v":0},{"$f":"+SUM(I14:I19,I25:I30)","v":0}]
[null,null,null,"Saldo",null,null,{"$f":"+SUM(F6:F8)-SUM(H14:H19,H25:H30)","v":0},{"$f":"+SUM(H6:H8)-SUM(H14:H19,H25:H30)","v":0},{"$f":"+SUM(I6:I8)-SUM(I14:I19,I25:I30)","v":0}]

{"sheet":"Wirtschaftsdünger","index":3,"n_rows":40,"n_cols":16,"rows_kept":40,"cut":false,"hidden":false,"merged":[]}
["Wirtschafts-dünger Art","Wirtschaftsdünger","N","NH4","P2O5","Mindestwirk-samkeit Acker","Mindestwirk-samkeit Grünland","N-Verfügbar Acker","N-Verfügbar Grünland",null,null,null,null,null,"Mindestwirk-samkeit Acker","Mindestwirk-samkeit Grünland"]
[null," leer"]
[null,"eigene Gülle 1",null,null,null,{"$f":"+IF(A3=$N$3,$O$3,$O4)","v":60},{"$f":"+IF(A3=$N$3,$P$3,$P$4)","v":50},{"$f":"+IF(D3>(C3*F3/100),D3,C3*F3/100)","v":0},{"$f":"+IF(D3>(C3*G3/100),D3,C3*G3/100)","v":0},null,null,null,null,"Schwein",70,60]
[null,"eigene Gülle 2",null,null,null,{"$f":"+IF(A4=$N$3,$O$3,$O$4)","v":60},{"$f":"+IF(A4=$N$3,$P$3,$P$4)","v":50},0,{"$f":"+IF(D4>(C4*G4/100),D4,C4*G4/100)","v":0},null,null,null,null,"Rind",60,50]
[null,"eigene Gülle 3",null,null,null,{"$f":"+IF(A5=$N$3,$O$3,$O$4)","v":60},{"$f":"+IF(A5=$N$3,$P$3,$P$4)","v":50},0,0,null,null,null,null,"Gärrest",60,50]
[null,"Entenmist",7,1.4,7.1,25,25,1.75,1.75]
[null,"Ferkelgü. NP red.",4.2,2.5,2,70,60,2.94,2.52]
[null,"Ferkelgü. Stark NP red",4,2.4,1.8,70,60,2.8,2.4]
[null,"Ferkelgü.Standard",4.5999999999999996,2.7,2.2000000000000002,70,60,3.22,2.76]
[null,"Gänsemist",8,1.9,6.5,30,30,2.4,2.4]
["Gärrest","Gärrest 1",null,null,null,{"$f":"+IF(A11=$N$3,$O$3,$O$4)","v":60},{"$f":"+IF(A11=$N$3,$P$3,$P$4)","v":50},0,0]
["Gärrest","Gärrest 2",null,null,null,{"$f":"+IF(A12=$N$3,$O$3,$O$4)","v":60},{"$f":"+IF(A12=$N$3,$P$3,$P$4)","v":50},0,0]
["Gärrest","Gärrest 3",null,null,null,{"$f":"+IF(A13=$N$3,$O$3,$O$4)","v":60},{"$f":"+IF(A13=$N$3,$P$3,$P$4)","v":50},0,0]
[null,"Hähnchmist NP red.",25,6.1,17,30,30,7.5,7.5]
[null,"Hähnchmist Standard",27,6.6,21,30,30,8.1,8.1]
[null,"HTK NP red",21,4.4000000000000004,16.899999999999999,60,60,12.6,12.6]
[null,"HTK Standard",22.2,4.7,19.8,60,60,13.32,13.32]
[null,"Kälbergülle",3.8,2.1,2.1,60,50,2.2799999999999998,2.1]
[null,"Kaninchenmist",18,0.7,19,30,30,5.4,5.4]
[null,"Mastbullengülle",4.8,2.6,2.1,60,50,2.88,2.6]
[null,"Mastschweine Brei/Sensor NP red",6.9,4.2,3.2,70,60,4.83,4.2]
[null,"Mastschweine Brei/Sensor Stand",7.2,4.3,3.7,70,60,5.04,4.32]
[null,"Mastschweine Brei/Sensor stark NP red",6.2,3.7,3,70,60,4.34,3.72]
[null,"Mastschweine flüssig NP red",4.7,2.8,2.2000000000000002,70,60,3.29,2.82]
[null,"Mastschweine flüssig Stand",4.9000000000000004,3,2.5,70,60,3.43,3]
[null,"Mastschweine flüssig stark NP red",4.3,2.6,2,70,60,3.01,2.6]
[null,"Mastschweine Ø",5.5,3.3,2.7,70,60,3.85,3.3]
[null,"Milchkuh/Färsen Anbinde",4.4000000000000004,2.2999999999999998,1.8,60,50,2.64,2.2999999999999998]
[null,"Milchkuh/Färsen Laufstall",3.7,1.7,1.5,60,50,2.2200000000000002,1.85]
[null,"Pferdemist",4,0.3,3.3,25,25,1,1]
[null,"Putenmist NP red.",20.100000000000001,4,15.6,30,30,6.03,6.03]
[null,"Putenmist Standard",21.4,4.3,20.6,30,30,6.42,6.42]
[null,"Rinderjauche",3,2.7,0.3,60,50,2.7,2.7]
[null,"Rindermist",5,0.5,3.2,25,25,1.25,1.25]
[null,"Sauen NP red",3.9,2.4,2.2000000000000002,70,60,2.73,2.4]
[null,"Sauen Standard",4.5,2.7,2.6,70,60,3.15,2.7]
[null,"Sauen stark NP red",3.7,2.2999999999999998,2,70,60,2.59,2.2999999999999998]
[null,"Schaf/Ziegenmist",8,0.7,6,25,25,2,2]
[null,"Schweinejauche",3,2.4,0.7,70,60,2.4,2.4]
[null,"Schweinemist",6,0.5,6.5,30,30,1.8,1.8]

{"sheet":"Mineraldünger","index":4,"n_rows":35,"n_cols":4,"rows_kept":35,"cut":false,"hidden":false,"merged":[]}
[null,"Mineraldünger","N ","P2O5"]
[null," leer"]
[null,"1 Dünger"]
[null,"2 Dünger"]
[null,"3 Dünger"]
[null,"4 Dünger"]
[null,"AHL",28]
[null,"Alzon 47",47]
[null,"Alzon Basamon",25]
[null,"Alzon flüssig 28",28]
[null,"Alzon flüssig -S 24",24]
[null,"Ammoniumthiosulfat ATS",12]
[null,"Ammonsulfatsalpeter",26]
[null,"Bittersalz"]
[null,"Diamonphosphat",18,46]
[null,"Entec 26",26]
[null,"Entec perfekt",14,7]
[null,"Harnstoff",46]
[null,"Hydrosulfan",26]
[null,"Kali 40er"]
[null,"Kali 60er"]
[null,"Kalkammonsalpeter",27]
[null,"Kalkstickstoff",20.5]
[null,"Kieserit"]
[null,"Magnesia Kainit"]
[null,"NP 16/26",16,26]
[null,"NP 20/20",20,20]
[null,"NP 23/23",23,23]
[null,"NP 26/14",26,14]
[null,"NPK 12+12+17+2",12,12]
[null,"NPK 15+15+15",15,15]
[null,"Piamon 33 S",33]
[null,"Piasan 24-3",24]
[null,"PK 12+24",null,12]
[null,"SSA",21]

{"sheet":"Weidetiere","index":5,"n_rows":13,"n_cols":2,"rows_kept":13,"cut":false,"hidden":false,"merged":[]}
[]
[null,"WEIDETIERE"]
[null,"Tierart"]
[null,"leer"]
[null,"JV < 6 Monate"]
[null,"JV 6-12 Monate"]
[null,"JV 12-24 Monate"]
[null,"JV > 24 Monate"]
[null,"Milchkühe"]
[null,"Mutterkühe"]
[null,"Pferde"]
[null,"Schafe"]
[null,"Ziegen"]

{"sheet":"Vordruck","index":6,"n_rows":30,"n_cols":13,"rows_kept":30,"cut":false,"hidden":false,"merged":[[5,2,5,3],[3,1,3,3]]}
["Dokumentation Düngung",null,null,null,2020,null,null,null,null,"Wirtschaftsdünger",null,"verfügbarer    N in % auf Ackerland","verfügbarer N in % auf Grünland"]
[null,null,null,null,null,null,null,null,null,"Rindergülle",null,60,50]
[null,null,null,null,null,null,null,null,null,"Schweinegülle",null,70,60]
["Betrieb",null,null,null,null,null,null,null,null,"Gärrest",null,60,50]
[null,null,null,null,null,null,null,null,null,"Rinder/Pferdemist",null,25,25]
["Registriernummer",null,null,null,null,null,null,null,null,"Schweine/Geflügelmist",null,30,30]
[null,null,null,null,null,null,null,null,null,"HTK",null,60,60]
[null,null,null,null,null,null,null,null,null,"Mineraldünger",null,100,100]
[]
["Schlag-Nr. ","Größe gesamt ","gedüngte Kultur","Datum der Ausbringung"," Art des Düngemittels ","Menge","Einheit","Gesamt-N","NH4 N","Gesamt P2O5","NH4 N","verfügbarer N","P2O5 "]
["GAP-Antrag","in ha",null,"(Tag/Monat/Jahr)",null,"pro ha","dt/t/m³","pro Einheit","pro Einheit","pro Einheit","in kg/ha","in kg/ha","in kg/ha"]
[]
[]
[]
[]
[]
[]
[]
[]
[]
[]
[]
[]
[]
[]
[]
[]
[" - Mineralisch gedüngter Stickstoff muss mit 100 % angerechnet werden."]
[" - Bei organischen Düngemitteln ist mit der Mindestwirtksamkeit (verfügbarer N) zu rechnen, mindestens jedoch sind die Gehalte an NH4 Stickstoff zu berücksichtigen."]
[" - Aufgrund der unterschiedlichen Mindestwirksamkeiten ist zwischen der Aufbringung auf Ackerland und Grünland zu unterscheiden."]